bitfinex/quotes_BTCUSD_20250713
["timestamp","ask_amount","ask_price","bid_price","bid_amount"]
[1752437132706,0.34,118720.0,118710.0,0.26534]
[1752437132707,0.42542993,118720.0,118710.0,0.26534]
[1752437132915,0.74237649,118720.0,118710.0,0.26534]
[1752437133623,0.76763249,118720.0,118710.0,0.52462]
[1752437133847,0.34,118720.0,118710.0,0.84156656]
[1752437134081,0.1406631,118730.0,118720.0,0.0635]
[1752437134299,0.1406631,118730.0,118720.0,0.44976512]
[1752437134515,0.1406631,118730.0,118720.0,0.44765933]
[1752437135393,0.4806631,118730.0,118720.0,0.38044656]
[1752437136050,0.4806631,118730.0,118720.0,0.38144656]
[1752437136917,0.4806631,118730.0,118720.0,0.0665]
[1752437137160,0.4806631,118730.0,118720.0,0.38555235]
[1752437137371,0.4806631,118730.0,118720.0,0.38344656]
[1752437142126,0.4806631,118730.0,118720.0,0.0665]
[1752437142332,0.4806631,118730.0,118720.0,0.38555235]
[1752437142543,0.4806631,118730.0,118720.0,0.38344656]
[1752437143449,0.4806631,118730.0,118720.0,0.46887649]
[1752437143653,0.4806631,118730.0,118720.0,0.78582305]
[1752437143869,0.1406631,118730.0,118720.0,0.81164959]
[1752437144307,0.1406631,118730.0,118720.0,1.10734959]
[1752437144516,0.1406631,118730.0,118720.0,1.10634959]
[1752437144726,0.1406631,118730.0,118720.0,1.10934959]
[1752437144969,0.1406631,118730.0,118720.0,1.10734959]
[1752437145177,0.1406631,118730.0,118720.0,1.11134959]
[1752437147151,0.1406631,118730.0,118720.0,0.47745647]
[1752437147353,0.1406631,118730.0,118720.0,1.11134959]
[1752437150402,0.1406631,118730.0,118720.0,1.37050959]
[1752437150969,0.1406631,118730.0,118720.0,1.37054959]
[1752437153190,0.1406631,118730.0,118720.0,1.38509044]
[1752437153613,0.1322556,118730.0,118720.0,1.43509044]
[1752437154065,0.09305454,118730.0,118720.0,1.43509044]
[1752437154491,0.08464704,118730.0,118720.0,1.43109044]
[1752437154702,0.08464704,118730.0,118720.0,1.43709044]
[1752437154920,0.07623954,118730.0,118720.0,1.43709044]
[1752437155144,0.06783204,118730.0,118720.0,1.43709044]
[1752437155560,0.05942454,118730.0,118720.0,1.43709044]
[1752437155977,0.05101704,118730.0,118720.0,1.43709044]
[1752437156227,0.01155731,118730.0,118720.0,1.48409044]
[1752437156444,0.0031503,118730.0,118720.0,1.48409044]
[1752437156853,0.002,118750.0,118740.0,0.39438741]
[1752437157066,0.002,118750.0,118740.0,1.03471933]
[1752437161065,0.002,118750.0,118740.0,1.03475933]
[1752437161487,0.002,118750.0,118740.0,1.02021848]
[1752437163133,0.002,118750.0,118740.0,1.03475933]
[1752437163347,0.002,118750.0,118740.0,1.35170589]
[1752437163566,0.002,118750.0,118740.0,1.03475933]
[1752437164280,0.002,118750.0,118740.0,1.03875933]
[1752437165469,0.002,118750.0,118740.0,1.04075933]
[1752437169828,0.002,118750.0,118740.0,0.45011192]
[1752437170039,0.002,118750.0,118740.0,0.83367848]
[1752437171099,0.002,118750.0,118740.0,0.70415848]
[1752437171307,0.03832,118750.0,118740.0,0.51673192]
[1752437171515,0.06932,118750.0,118740.0,0.51673192]
[1752437171754,0.03832,118750.0,118740.0,0.51673192]
[1752437172384,0.00732,118750.0,118740.0,0.83367848]
[1752437172596,0.00732,118750.0,118740.0,1.03539848]
[1752437176444,0.03832,118750.0,118740.0,1.03539848]
[1752437178041,0.03832,118750.0,118740.0,0.71845192]
[1752437178244,0.03832,118750.0,118740.0,1.03539848]
[1752437182009,0.03832,118750.0,118740.0,0.71845192]
[1752437182414,0.07012,118750.0,118740.0,0.71845192]
[1752437184864,0.07012,118750.0,118740.0,0.42275192]
[1752437185555,0.38706656,118750.0,118740.0,0.33732199]
[1752437185924,0.07012,118750.0,118740.0,0.33532199]
[1752437186129,0.07012,118750.0,118740.0,0.33232199]
[1752437186334,0.07012,118750.0,118740.0,0.33432199]
[1752437186734,0.07012,118750.0,118740.0,0.33332199]
[1752437190191,0.38706656,118750.0,118740.0,0.33332199]
[1752437196491,0.07012,118750.0,118740.0,0.33332199]
[1752437200014,0.38706656,118750.0,118740.0,0.33332199]
[1752437203340,0.38706656,118750.0,118740.0,0.73569848]
[1752437203341,0.002,118750.0,118740.0,0.73569848]
[1752437203789,0.002,118750.0,118740.0,0.79979848]
[1752437204955,0.002,118750.0,118740.0,0.80832771]
[1752437205403,0.002,118750.0,118740.0,0.79979848]
[1752437205629,0.002,118750.0,118740.0,0.77855192]
[1752437205849,0.002,118750.0,118740.0,1.09549848]
[1752437206905,0.00521,118750.0,118740.0,0.84397192]
[1752437207507,0.03651,118750.0,118740.0,0.84397192]
[1752437211141,0.03651,118750.0,118740.0,0.54827192]
[1752437211803,0.38876656,118750.0,118740.0,0.54827192]
[1752437214905,0.07182,118750.0,118740.0,0.54827192]
[1752437216994,0.07182,118750.0,118740.0,0.75854199]
[1752437218078,0.38876656,118750.0,118740.0,0.75854199]
[1752437220447,0.07182,118750.0,118740.0,0.75854199]
[1752437223076,0.07182,118750.0,118740.0,0.46284199]
[1752437224630,0.002,118750.0,118740.0,0.46284199]
[1752437224875,0.002,118750.0,118740.0,0.86521848]
[1752437225101,0.002,118750.0,118740.0,0.92681848]
[1752437225313,0.002,118750.0,118740.0,0.60987192]
[1752437227144,0.002,118750.0,118740.0,0.54827192]
[1752437228226,0.002,118750.0,118740.0,0.57857192]
[1752437228835,0.002,118750.0,118740.0,0.87427192]
[1752437229305,0.002,118750.0,118740.0,0.90557192]
[1752437229948,0.002,118750.0,118740.0,1.22251848]
[1752437231487,0.002,118750.0,118740.0,0.90557192]
[1752437234311,0.002,118750.0,118740.0,1.22251848]
[1752437240275,0.002,118750.0,118740.0,1.19121848]
[1752437240665,0.002,118750.0,118740.0,0.87427192]
[1752437240860,0.002,118750.0,118740.0,1.19121848]
[1752437243382,0.002,118750.0,118740.0,1.16091848]
[1752437243576,0.002,118750.0,118740.0,0.84397192]
[1752437246407,0.03714,118750.0,118740.0,0.84397192]
[1752437248127,0.06804,118750.0,118740.0,0.84397192]
[1752437249388,0.03714,118750.0,118740.0,0.84397192]
[1752437249604,0.06804,118750.0,118740.0,0.84397192]
[1752437250005,0.03714,118750.0,118740.0,0.84397192]
[1752437253368,0.00494,118750.0,118740.0,0.84397192]
[1752437253972,0.002,118750.0,118740.0,0.84397192]
[1752437260974,0.002,118750.0,118740.0,0.85260593]
[1752437263095,0.002,118750.0,118740.0,0.84397192]
[1752437265611,0.002,118750.0,118740.0,0.85265278]
[1752437266355,0.002,118750.0,118740.0,1.23409934]
[1752437266561,0.002,118770.0,118750.0,0.0645]
[1752437266790,0.002,118770.0,118760.0,0.66332157]
[1752437266997,0.002,118770.0,118760.0,0.66121649]
[1752437267208,0.002,118770.0,118760.0,0.34426993]
[1752437268073,0.002,118770.0,118760.0,0.34626993]
[1752437270337,0.002,118770.0,118760.0,0.64196993]
[1752437272035,0.0332,118770.0,118760.0,0.64196993]
[1752437272396,0.03624,118770.0,118760.0,0.64196993]
[1752437277580,0.002,118770.0,118760.0,0.64196993]
[1752437277806,0.002,118770.0,118760.0,0.95891649]
[1752437279312,0.002,118770.0,118760.0,0.64196993]
[1752437281061,0.002,118770.0,118760.0,0.67336993]
[1752437281490,0.002,118770.0,118760.0,0.64196993]
[1752437281899,0.002,118770.0,118760.0,1.02211649]
[1752437282592,0.002,118770.0,118760.0,1.03665734]
[1752437282806,0.002,118770.0,118760.0,1.03465734]
[1752437283244,0.002,118770.0,118760.0,1.03865734]
[1752437284641,0.002,118770.0,118760.0,1.04065734]
[1752437284851,0.0353,118790.0,118760.0,1.04065734]
[1752437285067,0.0353,118790.0,118770.0,0.29072]
[1752437285283,0.0663,118790.0,118780.0,0.34414993]
[1752437285974,0.0663,118790.0,118780.0,0.54586993]
[1752437286192,0.0353,118790.0,118780.0,0.57054518]
[1752437286610,0.0353,118790.0,118780.0,0.57058717]
[1752437287501,0.0663,118790.0,118780.0,0.57058717]
[1752437287943,0.0353,118790.0,118780.0,0.57058717]
[1752437288381,0.06832,118790.0,118780.0,0.57058717]
[1752437288832,0.38526656,118790.0,118780.0,0.57058717]
[1752437291090,0.38526656,118790.0,118780.0,0.86628717]
[1752437291731,0.38526656,118790.0,118780.0,0.84161192]
[1752437295629,0.0633,118790.0,118780.0,1.15855848]
[1752437295895,0.0663,118790.0,118780.0,0.86689637]
[1752437296094,0.0353,118790.0,118780.0,0.86689637]
[1752437296394,0.002,118790.0,118780.0,0.86689637]
[1752437297364,0.0334,118790.0,118780.0,0.86689637]
[1752437297583,0.0364,118790.0,118780.0,0.86889637]
[1752437297829,0.0364,118790.0,118780.0,0.86989637]
[1752437299171,0.005,118790.0,118780.0,0.86989637]
[1752437300572,0.0371,118790.0,118780.0,0.86989637]
[1752437303352,0.005,118790.0,118780.0,0.86989637]
[1752437303556,0.07002,118790.0,118780.0,0.86989637]
[1752437304308,0.38696656,118790.0,118780.0,0.86989637]
[1752437305188,0.38696656,118790.0,118780.0,0.50046199]
[1752437305619,0.72696656,118790.0,118780.0,0.50046199]
[1752437305832,0.72696656,118790.0,118780.0,0.33096]
[1752437305833,0.72676656,118790.0,118780.0,0.33096]
[1752437306046,0.81219649,118790.0,118780.0,0.33096]
[1752437306252,0.83511974,118790.0,118780.0,0.33196]
[1752437306886,0.83511974,118790.0,118780.0,0.33096]
[1752437307941,0.83711974,118790.0,118780.0,0.33096]
[1752437308403,0.83911974,118790.0,118780.0,0.33096]
[1752437310477,0.81619649,118790.0,118780.0,0.33096]
[1752437311127,0.73076656,118790.0,118780.0,0.33096]
[1752437313319,0.73076656,118790.0,118780.0,0.331]
[1752437313772,0.81619649,118790.0,118780.0,0.20172]
[1752437314009,0.81619649,118790.0,118780.0,0.331]
[1752437321155,0.73076656,118790.0,118780.0,0.331]
[1752437327111,0.81619649,118790.0,118780.0,0.331]
[1752437330510,0.81619649,118790.0,118780.0,0.20172]
[1752437330753,0.81619649,118790.0,118780.0,0.46028]
[1752437339618,0.49924993,118790.0,118780.0,0.46028]
[1752437339826,0.81619649,118790.0,118780.0,0.46028]
[1752437340916,0.73070656,118790.0,118780.0,0.46028]
[1752437341122,0.69890656,118790.0,118780.0,0.46225]
[1752437341996,0.66496656,118790.0,118780.0,0.46225]
[1752437342207,0.66813656,118790.0,118780.0,0.46225]
[1752437342839,0.70073656,118790.0,118780.0,0.46225]
[1752437343471,0.73143656,118790.0,118780.0,0.46225]
[1752437343966,0.73143656,118790.0,118780.0,0.46028]
[1752437344390,0.71843656,118790.0,118780.0,0.46028]
[1752437344598,0.72045656,118790.0,118780.0,0.46028]
[1752437345274,0.72045656,118790.0,118780.0,0.46225]
[1752437345516,0.68975656,118790.0,118780.0,0.46225]
[1752437346187,0.68658656,118790.0,118780.0,0.46225]
[1752437349748,0.65196656,118790.0,118780.0,0.46225]
[1752437349959,0.65196656,118790.0,118780.0,0.46546]
[1752437350633,0.65196656,118790.0,118780.0,0.52646]
[1752437354350,0.65196656,118790.0,118780.0,0.49636]
[1752437356510,0.65196656,118790.0,118780.0,0.46546]
[1752437358099,0.65196656,118790.0,118780.0,0.52736]
[1752437359789,0.65196656,118790.0,118780.0,0.49626]
[1752437360444,0.65196656,118790.0,118780.0,0.46546]
[1752437367014,0.65196656,118790.0,118780.0,0.46225]
[1752437367461,0.65196656,118790.0,118780.0,0.48093646]
[1752437371613,0.65400656,118790.0,118780.0,0.47896646]
[1752437371830,0.72115656,118790.0,118780.0,0.47896646]
[1752437375826,0.72115656,118790.0,118780.0,0.48108646]
[1752437378979,0.33502,118790.0,118780.0,0.48108646]
[1752437379209,0.65196656,118790.0,118780.0,0.48108646]
[1752437379657,0.65196656,118790.0,118780.0,0.48415646]
[1752437382461,0.004,118790.0,118780.0,0.63168639]
[1752437383187,0.002,118790.0,118780.0,0.63168639]
[1752437383621,0.65694656,118800.0,118790.0,0.0316]
[1752437383826,0.65694656,118800.0,118790.0,0.29721455]
[1752437384054,0.65694656,118800.0,118790.0,0.29511]
[1752437384486,0.65694656,118800.0,118790.0,0.26351]
[1752437385100,0.65794656,118800.0,118790.0,0.26351]
[1752437386340,0.341,118800.0,118790.0,0.26351]
[1752437386542,0.65794656,118800.0,118790.0,0.26351]
[1752437387385,0.65894656,118800.0,118790.0,0.26351]
[1752437388433,0.65894656,118800.0,118790.0,0.00459016]
[1752437388643,0.65894656,118800.0,118790.0,0.00669471]
[1752437389365,0.342,118800.0,118790.0,0.00669471]
[1752437389870,0.65894656,118800.0,118790.0,0.26497471]
[1752437390079,0.65894656,118800.0,118790.0,0.26287016]
[1752437393469,0.342,118800.0,118790.0,0.34830009]
[1752437393712,0.65894656,118800.0,118790.0,0.34830009]
[1752437394168,0.65894656,118800.0,118790.0,0.41250009]
[1752437394394,0.65894656,118800.0,118790.0,0.38020009]
[1752437394626,0.65894656,118800.0,118790.0,0.67590009]
[1752437395326,0.65894656,118800.0,118790.0,0.64400009]
[1752437398978,0.65894656,118800.0,118790.0,0.70710009]
[1752437399584,0.31894656,118800.0,118790.0,0.70710009]
[1752437401218,0.31894656,118800.0,118790.0,0.64400009]
[1752437402376,0.002,118800.0,118790.0,1.02494665]
[1752437402601,0.38427656,118830.0,118800.0,0.0327]
[1752437402843,0.34954656,118830.0,118820.0,0.00207]
[1752437403066,0.03473,118840.0,118820.0,0.00502]
[1752437403067,0.38427656,118840.0,118820.0,0.00502]
[1752437403283,0.66213656,118830.0,118820.0,0.00207]
[1752437403522,0.72633656,118830.0,118820.0,0.2582]
[1752437403779,0.73488674,118830.0,118820.0,0.2582]
[1752437404246,0.73488674,118830.0,118820.0,0.25824983]
[1752437404488,0.73588674,118830.0,118820.0,0.25824983]
[1752437405391,0.73688674,118830.0,118820.0,0.25824983]
[1752437408022,0.73688674,118830.0,118820.0,0.45992983]
[1752437414325,0.41994018,118830.0,118820.0,0.45992983]
[1752437414503,0.73688674,118830.0,118820.0,0.45992983]
[1752437425522,0.41994018,118830.0,118820.0,0.45992983]
[1752437425767,0.73688674,118830.0,118820.0,0.45992983]
[1752437427091,0.895311,118830.0,118820.0,0.45992983]
[1752437437598,0.863711,118830.0,118820.0,0.46206983]
[1752437437809,0.38834018,118830.0,118820.0,0.46206983]
[1752437438031,0.863711,118830.0,118820.0,0.46206983]
[1752437438478,0.827981,118830.0,118820.0,0.46206983]
[1752437440054,0.827981,118830.0,118820.0,0.46510983]
[1752437440055,0.35055018,118830.0,118820.0,0.46510983]
[1752437440280,0.58823559,118830.0,118820.0,0.46510983]
[1752437440977,0.35055018,118830.0,118820.0,0.52780983]
[1752437441208,0.58823559,118830.0,118820.0,0.52780983]
[1752437441425,0.24823559,118830.0,118820.0,0.52780983]
[1752437442672,0.58823559,118830.0,118820.0,0.52780983]
[1752437445306,0.58823559,118830.0,118820.0,0.49760983]
[1752437445551,0.58823559,118830.0,118820.0,0.46510983]
[1752437447439,0.825921,118830.0,118820.0,0.46510983]
[1752437448882,0.81737082,118830.0,118820.0,0.46510983]
[1752437450291,0.47737082,118830.0,118820.0,0.46206983]
[1752437451419,0.002,118830.0,118820.0,0.46206983]
[1752437451694,0.47737082,118830.0,118820.0,0.46206983]
[1752437452256,0.48571145,118830.0,118820.0,0.46206983]
[1752437453433,0.01034063,118830.0,118820.0,0.46206983]
[1752437453654,0.24802604,118830.0,118820.0,0.46510983]
[1752437455844,0.01034063,118830.0,118820.0,0.46510983]
[1752437456075,0.24802604,118830.0,118820.0,0.46510983]
[1752437457150,0.23968541,118830.0,118820.0,0.46510983]
[1752437457642,0.23968541,118830.0,118820.0,0.49610983]
[1752437458000,0.23968541,118830.0,118820.0,0.52780983]
[1752437458545,0.23968541,118830.0,118820.0,0.49610983]
[1752437458778,0.30860541,118830.0,118820.0,0.46206983]
[1752437459005,0.78397623,118830.0,118820.0,0.45992983]
[1752437459258,0.54629082,118830.0,118820.0,0.45992983]
[1752437460150,0.55486347,118830.0,118820.0,0.45992983]
[1752437465997,0.51851347,118830.0,118820.0,0.46200983]
[1752437466440,0.55355347,118830.0,118820.0,0.46200983]
[1752437466887,0.55355347,118830.0,118820.0,0.45992983]
[1752437468209,0.55355347,118830.0,118820.0,0.46200983]
[1752437474905,0.55355347,118830.0,118820.0,0.45992983]
[1752437478533,0.79123888,118830.0,118820.0,0.45936983]
[1752437478944,1.13123888,118830.0,118820.0,0.45936983]
[1752437480005,1.13117997,118830.0,118820.0,0.45936983]
[1752437481518,0.89349456,118830.0,118820.0,0.45936983]
[1752437481933,1.13117997,118830.0,118820.0,0.45936983]
[1752437482411,0.89349456,118830.0,118820.0,0.45936983]
[1752437483766,1.13117997,118830.0,118820.0,0.45936983]
[1752437485101,0.89349456,118830.0,118820.0,0.45936983]
[1752437486476,0.55349456,118830.0,118820.0,0.45936983]
[1752437488344,0.89349456,118830.0,118820.0,0.45936983]
[1752437489984,0.55349456,118830.0,118820.0,0.45936983]
[1752437490167,0.89349456,118830.0,118820.0,0.45936983]
[1752437499941,0.89349456,118830.0,118820.0,0.45940983]
[1752437528211,0.89349456,118830.0,118820.0,0.45900983]
[1752437528212,1.2166099,118830.0,118820.0,0.45900983]
[1752437530487,0.99346534,118830.0,118820.0,0.45900983]
[1752437530725,0.59016915,118830.0,118820.0,0.46109983]
[1752437531487,0.58819915,118830.0,118820.0,0.46109983]
[1752437531935,0.82588456,118830.0,118820.0,0.46109983]
[1752437533077,0.82801456,118830.0,118820.0,0.46109983]
[1752437533528,0.86427456,118830.0,118820.0,0.46109983]
[1752437537916,0.89697456,118830.0,118820.0,0.46109983]
[1752437539679,0.98240449,118830.0,118820.0,0.45900983]
[1752437542802,1.97061023,118830.0,118820.0,0.45888983]
[1752437543039,1.99584623,118830.0,118820.0,0.45888983]
[1752437543487,2.0686489,118830.0,118820.0,0.45888983]
[1752437543783,2.07847297,118830.0,118820.0,0.45888983]
[1752437544002,2.07747297,118830.0,118820.0,0.45888983]
[1752437544221,2.08047297,118830.0,118820.0,0.45888983]
[1752437544437,2.08047255,118830.0,118820.0,0.45888983]
[1752437544630,2.08447255,118830.0,118820.0,0.45888983]
[1752437544892,2.06116879,118830.0,118820.0,0.45888983]
[1752437545126,1.26928081,118830.0,118820.0,0.45888983]
[1752437545821,1.26928081,118830.0,118820.0,0.45888983]
[1752437546507,0.89390492,118830.0,118820.0,0.45888983]
[1752437546954,0.3868,118820.0,118810.0,0.20168]
[1752437547208,0.79147217,118820.0,118810.0,0.20168]
[1752437547436,0.80917302,118820.0,118810.0,0.20168]
[1752437548126,0.80917302,118820.0,118810.0,0.4588]
[1752437548352,0.81517302,118820.0,118810.0,0.4588]
[1752437550133,1.13228526,118820.0,118810.0,0.4588]
[1752437551484,0.81517302,118820.0,118810.0,0.4588]
[1752437552369,0.48351993,118820.0,118810.0,0.46094]
[1752437552609,0.77224217,118820.0,118810.0,0.46094]
[1752437554918,0.77427217,118820.0,118810.0,0.46094]
[1752437555140,0.77738217,118820.0,118810.0,0.46094]
[1752437557143,0.80098217,118820.0,118810.0,0.46094]
[1752437560990,0.80098217,118820.0,118810.0,0.46098]
[1752437564973,0.80098217,118820.0,118810.0,0.45884]
[1752437570798,0.80098217,118820.0,118810.0,0.46098]
[1752437572163,0.74854217,118820.0,118810.0,0.46098]
[1752437575349,0.74854217,118820.0,118810.0,0.20354056]
[1752437576562,0.74854217,118820.0,118810.0,0.46042056]
[1752437580988,0.90685405,118820.0,118810.0,0.46042056]
[1752437581895,0.92835405,118820.0,118810.0,0.46042056]
[1752437583502,0.43142993,118820.0,118810.0,0.46042056]
[1752437583725,0.90685405,118820.0,118810.0,0.46042056]
[1752437586553,0.82142412,118820.0,118810.0,0.46042056]
[1752437588034,0.84432412,118820.0,118810.0,0.46042056]
[1752437593102,0.84643412,118820.0,118810.0,0.46042056]
[1752437593305,0.87202412,118820.0,118810.0,0.46046056]
[1752437594360,1.10973618,118820.0,118810.0,0.46046056]
[1752437594779,0.87202412,118820.0,118810.0,0.46046056]
[1752437596046,1.10973618,118820.0,118810.0,0.46046056]
[1752437596694,1.10973618,118820.0,118810.0,0.4586]
[1752437596940,0.00556232,118810.0,118790.0,0.04165479]
[1752437597154,0.00766616,118810.0,118800.0,0.20366]
[1752437598138,0.00766616,118810.0,118800.0,0.46034]
[1752437598335,0.82509028,118810.0,118800.0,0.46034]
[1752437598538,0.82298644,118810.0,118800.0,0.46034]
[1752437600101,0.34756232,118810.0,118800.0,0.46034]
[1752437600314,0.82298644,118810.0,118800.0,0.46034]
[1752437600969,0.82398644,118810.0,118800.0,0.46034]
[1752437601689,0.82609644,118810.0,118800.0,0.46034]
[1752437601907,0.87328644,118810.0,118800.0,0.46034]
[1752437602348,0.87228644,118810.0,118800.0,0.46034]
[1752437603459,0.84679644,118810.0,118800.0,0.46034]
[1752437603928,0.58527438,118810.0,118800.0,0.46034]
[1752437604154,0.58527438,118810.0,118800.0,0.46349]
[1752437605272,0.58527438,118810.0,118800.0,0.46038]
[1752437605728,0.58727438,118810.0,118800.0,0.46038]
[1752437606141,0.60967438,118810.0,118800.0,0.46038]
[1752437606564,0.37196232,118810.0,118800.0,0.46038]
[1752437606787,0.58727438,118810.0,118800.0,0.46349]
[1752437612181,0.58727438,118810.0,118800.0,0.48599]
[1752437612951,0.58727438,118810.0,118800.0,0.46349]
[1752437615513,0.58643271,118810.0,118800.0,0.46349]
[1752437620921,0.34872065,118810.0,118800.0,0.46349]
[1752437621171,0.58643271,118810.0,118800.0,0.46349]
[1752437622177,0.58643271,118810.0,118800.0,0.46038]
[1752437622391,0.60943271,118810.0,118800.0,0.46038]
[1752437623370,0.58643271,118810.0,118800.0,0.46038]
[1752437624862,0.60913271,118810.0,118800.0,0.46038]
[1752437626839,0.60913271,118810.0,118800.0,0.46357]
[1752437627327,0.60913271,118810.0,118800.0,0.46038]
[1752437628215,0.37142065,118810.0,118800.0,0.46038]
[1752437628427,0.60913271,118810.0,118800.0,0.46038]
[1752437635495,0.60829104,118810.0,118800.0,0.46038]
[1752437642170,0.00787898,118810.0,118800.0,0.78646199]
[1752437642380,0.00787898,118810.0,118800.0,0.56754993]
[1752437642769,0.00787898,118810.0,118800.0,0.58284993]
[1752437643043,0.00787898,118810.0,118800.0,0.87854993]
[1752437644549,0.00787898,118810.0,118800.0,0.86324993]
[1752437646960,0.00787898,118810.0,118800.0,0.84444993]
[1752437649376,0.00787898,118810.0,118800.0,0.86444993]
[1752437649542,0.00787898,118810.0,118800.0,0.84444993]
[1752437650988,0.24559104,118810.0,118800.0,0.84444993]
[1752437651194,0.26459104,118810.0,118800.0,0.84444993]
[1752437654966,0.26459104,118810.0,118800.0,0.54874993]
[1752437655452,0.26374937,118810.0,118800.0,0.54874993]
[1752437655659,0.02603731,118810.0,118800.0,0.54874993]
[1752437655901,0.26374937,118810.0,118800.0,0.54874993]
[1752437659946,0.02603731,118810.0,118800.0,0.54874993]
[1752437660166,0.26374937,118810.0,118800.0,0.54874993]
[1752437660805,0.26374937,118810.0,118800.0,0.84444993]
[1752437662677,0.26374937,118810.0,118800.0,0.84150993]
[1752437662894,0.28789937,118810.0,118800.0,0.7541]
[1752437666856,0.28789937,118810.0,118800.0,0.4584]
[1752437675611,0.2870577,118810.0,118800.0,0.4584]
[1752437688764,0.2870577,118810.0,118800.0,0.46042]
[1752437695466,0.28621603,118810.0,118800.0,0.46042]
[1752437696674,0.04850397,118810.0,118800.0,0.46042]
[1752437696897,0.04345397,118810.0,118800.0,0.46338]
[1752437697099,0.00535397,118810.0,118800.0,1.11832199]
[1752437697731,0.00135397,118810.0,118800.0,1.11832199]
[1752437697963,0.00235397,118810.0,118800.0,1.11832199]
[1752437698163,0.00335397,118810.0,118800.0,1.11832199]
[1752437698370,0.00235397,118810.0,118800.0,1.11832199]
[1752437698577,0.00135397,118810.0,118800.0,1.11832199]
[1752437702220,0.00135397,118810.0,118800.0,1.35603405]
[1752437703611,0.00135397,118810.0,118800.0,1.35803405]
[1752437703843,0.00135397,118810.0,118800.0,1.36103405]
[1752437710588,0.00135397,118810.0,118800.0,1.41103405]
[1752437711618,0.0388,118840.0,118810.0,0.0357]
[1752437711834,0.0388,118840.0,118830.0,0.00212]
[1752437712039,0.0198,118840.0,118830.0,0.58420199]
[1752437712239,0.38,118850.0,118830.0,0.58420199]
[1752437712441,0.38,118850.0,118840.0,0.34333359]
[1752437712595,0.38,118850.0,118840.0,0.34334993]
[1752437712796,0.38204,118850.0,118840.0,0.34334993]
[1752437713009,0.3821238,118850.0,118840.0,0.34334993]
[1752437713217,0.0421238,118850.0,118840.0,0.63904993]
[1752437714511,0.28287586,118850.0,118840.0,0.63904993]
[1752437714970,0.28587586,118850.0,118840.0,0.63904993]
[1752437715387,0.28503447,118850.0,118840.0,0.63904993]
[1752437716842,0.28703447,118850.0,118840.0,0.63904993]
[1752437717060,0.28703447,118850.0,118840.0,0.63692993]
[1752437718553,0.0256838,118850.0,118840.0,0.63904993]
[1752437718758,0.0256838,118850.0,118840.0,0.87990199]
[1752437719180,0.0256838,118850.0,118840.0,0.64218993]
[1752437719815,0.0256838,118850.0,118840.0,0.63904993]
[1752437721118,0.0453838,118850.0,118840.0,0.63904993]
[1752437721953,0.0256838,118850.0,118840.0,0.63904993]
[1752437722152,0.0256838,118850.0,118840.0,0.66726932]
[1752437722407,0.0256838,118850.0,118840.0,0.64218993]
[1752437723165,0.0050838,118850.0,118840.0,0.64218993]
[1752437725174,0.0250838,118850.0,118840.0,0.64218993]
[1752437725378,0.0220838,118850.0,118840.0,0.64218993]
[1752437726258,0.0200838,118850.0,118840.0,0.64218993]
[1752437727513,8.38e-05,118850.0,118840.0,0.84378993]
[1752437727716,8.38e-05,118850.0,118840.0,0.86854272]
[1752437728138,0.0200838,118850.0,118840.0,0.86854272]
[1752437731016,0.0408838,118850.0,118840.0,0.86854272]
[1752437731376,0.0200838,118850.0,118840.0,0.86854272]
[1752437734398,8.38e-05,118850.0,118840.0,0.86854272]
[1752437735018,0.0205838,118850.0,118840.0,0.86854272]
[1752437737795,8.38e-05,118850.0,118840.0,1.18520245]
[1752437738008,0.02394,118870.0,118840.0,1.56716218]
[1752437738009,0.0209,118870.0,118840.0,1.56716218]
[1752437738215,0.02140042,118870.0,118860.0,0.31665973]
[1752437738433,0.00090042,118870.0,118860.0,0.95538966]
[1752437738655,0.00090042,118870.0,118860.0,0.97508966]
[1752437738870,0.00090042,118870.0,118860.0,0.97802966]
[1752437740360,0.00090042,118870.0,118860.0,0.95832966]
[1752437740768,0.00090042,118870.0,118860.0,0.97752966]
[1752437740984,0.00090042,118870.0,118860.0,0.99282966]
[1752437741648,0.00090042,118870.0,118860.0,0.97752966]
[1752437744044,0.00190042,118870.0,118860.0,0.97752966]
[1752437746019,0.00190042,118870.0,118860.0,0.95832966]
[1752437747749,0.00190042,118870.0,118860.0,0.97842966]
[1752437748694,0.00190042,118870.0,118860.0,0.99372966]
[1752437749177,0.0205,118880.0,118870.0,0.31665973]
[1752437749399,0.0205,118880.0,118870.0,0.63860993]
[1752437749608,0.0205,118880.0,118870.0,0.95820966]
[1752437750437,0.0421,118890.0,118870.0,0.95820966]
[1752437750641,0.002,118880.0,118870.0,0.61725973]
[1752437750857,0.002,118880.0,118870.0,1.02275051]
[1752437751067,0.04225004,118890.0,118870.0,1.04285051]
[1752437751289,0.04225004,118890.0,118880.0,0.66054966]
[1752437751507,0.00215004,118890.0,118880.0,0.66250966]
[1752437751741,0.02495004,118890.0,118880.0,0.66250966]
[1752437752815,0.02495004,118890.0,118880.0,0.67093937]
[1752437753037,0.00215004,118890.0,118880.0,0.67093937]
[1752437754027,0.00215004,118890.0,118880.0,0.34584993]
[1752437754268,0.02295004,118890.0,118880.0,0.66250966]
[1752437754503,0.00215004,118890.0,118880.0,0.66250966]
[1752437754701,0.0208,118900.0,118880.0,0.74820966]
[1752437754862,0.001,118890.0,118880.0,0.18763078]
[1752437755063,0.0002,118900.0,118880.0,1.07643024]
[1752437755327,0.0002,118900.0,118890.0,0.74261051]
[1752437755474,0.021,118910.0,118890.0,0.76271051]
[1752437755677,0.021,118910.0,118900.0,0.86202966]
[1752437755877,0.021,118910.0,118900.0,0.86398966]
[1752437758908,0.021,118910.0,118900.0,0.86498966]
[1752437759781,0.021,118910.0,118900.0,0.54832993]
[1752437759990,0.04525,118910.0,118900.0,0.54342993]
[1752437760638,0.04525,118910.0,118900.0,0.56873374]
[1752437760863,0.36190973,118910.0,118900.0,0.28794993]
[1752437761066,0.36190973,118910.0,118900.0,0.41578993]
[1752437761498,0.36190973,118910.0,118900.0,0.33036]
[1752437762137,0.36190973,118910.0,118900.0,0.32936]
[1752437762292,0.36290973,118910.0,118900.0,0.32936]
[1752437762902,0.36290973,118910.0,118900.0,0.20152]
[1752437763111,0.36290973,118910.0,118900.0,0.3294]
[1752437763314,0.36290973,118910.0,118900.0,0.32944]
[1752437763517,0.36390973,118910.0,118900.0,0.32944]
[1752437764743,0.04725,118910.0,118900.0,0.32944]
[1752437765124,0.36390973,118910.0,118900.0,0.32944]
[1752437765939,0.04725,118910.0,118900.0,0.32944]
[1752437766153,0.36390973,118910.0,118900.0,0.32944]